bitfinex-derivatives/quotes_BNBF0:USTF0_20250101
["timestamp","ask_amount","ask_price","bid_price","bid_amount"]
[1735766684059,0.88972218,707.95,707.3,1.05659426]
[1735766684260,0.88972218,707.94,707.3,1.05659426]
[1735766684455,0.88972218,707.93,707.28,1.05659426]
[1735766684655,0.88972218,707.92,707.28,1.05659426]
[1735766684854,0.88972218,707.91,707.28,1.05659426]
[1735766685059,0.88972218,707.9,707.28,1.05659426]
[1735766685259,0.88972218,707.89,707.28,1.05659426]
[1735766685460,0.88972218,707.88,707.25,1.05659426]
[1735766685662,0.88972218,707.87,707.25,1.05659426]
[1735766685858,0.88972218,707.86,707.25,1.05659426]
[1735766686057,0.88972218,707.85,707.25,1.05659426]
[1735766686258,0.88972218,707.84,707.25,1.05659426]
[1735766686455,0.88972218,707.83,707.25,1.05659426]
[1735766686754,0.88972218,707.82,707.24,1.05659426]
[1735766686957,0.88972218,707.81,707.24,1.05659426]
[1735766687154,0.88972218,707.8,707.24,1.05659426]
[1735766687358,0.88972218,707.79,707.24,1.05659426]
[1735766687559,1.47578003,707.95,707.24,1.05659426]
[1735766687757,0.88960182,707.94,707.24,1.05659426]
[1735766687955,0.88960182,707.93,707.23,1.05659426]
[1735766688158,0.88960182,707.92,707.23,1.05659426]
[1735766688360,0.88960182,707.92,706.53,2.15721328]
[1735766688558,0.88960182,707.9,705.35,3.33324934]
[1735766688759,0.88960182,707.89,705.36,0.84905364]
[1735766688960,0.88960182,707.88,707.22,1.05687943]
[1735766689262,0.88960182,707.87,707.22,1.05687943]
[1735766689566,0.88960182,707.86,707.22,1.05687943]
[1735766689765,0.88943929,707.85,707.22,1.05687943]
[1735766689969,0.88943929,707.84,707.22,1.05687943]
[1735766690175,0.88943929,707.83,707.23,1.05687943]
[1735766690373,0.88943929,707.82,707.23,1.05687943]
[1735766690573,0.88929531,707.81,707.23,1.05687943]
[1735766690772,1.47578003,707.95,707.23,1.05687943]
[1735766690972,0.88931077,707.94,707.23,1.05687943]
[1735766691172,0.88931077,707.93,707.23,1.05687943]
[1735766691372,0.88931077,707.92,707.21,1.05687943]
[1735766691573,0.88931077,707.91,707.21,1.05687943]
[1735766691773,0.88931077,707.9,707.21,1.05687943]
[1735766692072,0.88931077,707.89,707.21,1.05687943]
[1735766692269,0.88931077,707.88,707.21,1.05687943]
[1735766692469,0.88931077,707.87,707.2,1.05687943]
[1735766692669,0.88931077,707.86,707.2,1.05687943]
[1735766692869,0.88931077,707.85,707.2,1.05687943]
[1735766693071,0.88931077,707.84,707.2,1.05687943]
[1735766693373,0.88931077,707.83,707.2,1.05687943]
[1735766693673,0.88931077,707.83,706.44,2.1577955]
[1735766693674,0.88931077,707.82,707.18,1.05687943]
[1735766693874,1.47578003,707.95,707.18,1.05687943]
[1735766694173,0.88905382,707.94,707.18,1.05687943]
[1735766694366,0.88905382,707.93,707.18,1.05687943]
[1735766694572,0.88905382,707.92,707.19,1.05687943]
[1735766694867,0.88905382,707.91,707.19,1.05687943]
[1735766695068,0.88905382,707.9,707.19,1.05687943]
[1735766695274,0.88905382,707.89,707.19,1.05687943]
[1735766695475,0.88905382,707.88,707.19,1.05687943]
[1735766695774,0.88905382,707.88,706.42,2.1577955]
[1735766695775,1.47578003,707.95,707.22,1.05687943]
[1735766695975,0.88888969,707.94,707.22,1.05687943]
[1735766696176,0.88888969,707.93,707.22,1.05687943]
[1735766696375,0.88888969,707.92,707.22,1.05687943]
[1735766696571,1.47578003,707.95,707.22,1.05687943]
[1735766696572,0.88888969,707.91,707.22,1.05687943]
[1735766696777,0.88888969,707.9,707.22,1.05687943]
[1735766696972,0.88888969,707.89,707.14,1.05687943]
[1735766697177,0.88888969,707.88,707.14,1.05687943]
[1735766697376,1.47578003,707.95,707.14,1.05687943]
[1735766697377,0.88888969,707.87,707.14,1.05687943]
[1735766697577,0.88888969,707.86,707.14,1.05687943]
[1735766697772,0.88888969,707.85,707.14,1.05687943]
[1735766697974,0.88888969,707.84,707.14,1.05687943]
[1735766698174,0.88888969,707.83,707.15,1.05687943]
[1735766698376,0.88888969,707.82,707.15,1.05687943]
[1735766698574,0.88888969,707.81,707.15,1.05687943]
[1735766698775,1.47578003,707.95,707.15,1.05687943]
[1735766698973,0.88863019,707.94,707.15,1.05687943]
[1735766699173,0.88863019,707.93,707.15,1.05687943]
[1735766699479,1.47578003,707.95,707.15,1.05687943]
[1735766699480,0.88864103,707.92,707.15,1.05687943]
[1735766699682,0.88864103,707.91,707.15,1.05687943]
[1735766699881,0.88864103,707.9,707.15,1.05687943]
[1735766700077,0.88864103,707.89,707.15,1.05687943]
[1735766700281,0.88864103,707.88,707.15,1.05687943]
[1735766700584,0.88864103,707.87,707.15,1.05687943]
[1735766700881,0.88864103,707.86,707.15,1.05687943]
[1735766701081,0.88864103,707.85,707.15,1.05687943]
[1735766701283,0.88864103,707.84,707.15,1.05687943]
[1735766701475,0.88864103,707.83,707.15,1.05687943]
[1735766701680,1.47578003,707.95,707.15,1.05687943]
[1735766701883,0.88848291,707.94,707.19,1.05687943]
[1735766702083,0.88848291,707.93,707.19,1.05687943]
[1735766702283,0.88848291,707.92,707.19,1.05687943]
[1735766702584,0.88848291,707.91,707.19,1.05687943]
[1735766702783,0.88848291,707.9,707.19,1.05687943]
[1735766702977,0.88848291,707.89,707.19,1.05687943]
[1735766703178,0.88848291,707.88,707.19,1.05687943]
[1735766703378,0.88848291,707.87,707.23,1.05687943]
[1735766703581,0.88829087,707.86,707.23,1.05687943]
[1735766703883,1.47578003,707.95,707.23,1.05687943]
[1735766704182,0.8883642,707.94,707.23,1.05687943]
[1735766704383,0.8883642,707.93,707.23,1.05687943]
[1735766704581,0.8883642,707.92,707.29,1.05687943]
[1735766704783,1.47568095,708.09,707.29,1.05687943]
[1735766704988,0.88861752,708.08,707.29,1.05687943]
[1735766705181,0.88861752,708.07,707.29,1.05687943]
[1735766705388,0.88861752,708.06,707.29,1.05687943]
[1735766705685,0.88861752,708.05,707.38,1.05687943]
[1735766705888,0.88861752,708.04,707.38,1.05687943]
[1735766706085,0.88861752,708.03,707.38,1.05687943]
[1735766706384,0.88861752,708.02,707.38,1.05687943]
[1735766706586,0.88861752,708.01,707.38,1.05687943]
[1735766706781,0.88894438,708.0,707.38,1.05687943]
[1735766706983,0.88894438,707.99,707.39,1.05687943]
[1735766707188,0.732,708.07,707.39,1.05687943]
[1735766707189,0.88894438,707.98,707.39,1.05687943]
[1735766707389,0.88894438,707.97,707.39,1.05687943]
[1735766707586,0.88894438,707.96,707.39,1.05687943]
[1735766707785,0.88894438,707.95,707.39,1.05687943]
[1735766708090,0.732,708.07,707.41,1.05687943]
[1735766708288,0.88909448,708.06,707.41,1.05687943]
[1735766708488,0.88909448,708.05,707.41,1.05687943]
[1735766708691,0.88909448,708.04,707.41,1.05687943]
[1735766708883,0.88909448,708.03,707.41,1.05687943]
[1735766709083,0.88909448,708.02,707.41,1.05687943]
[1735766709290,0.88909448,708.01,707.41,1.05687943]
[1735766709491,0.88909448,708.0,707.41,1.05687943]
[1735766709793,0.88956031,707.99,707.41,1.05687943]
[1735766709985,0.88956031,707.98,707.41,1.05687943]
[1735766710190,0.88956031,707.97,707.41,1.05687943]
[1735766710393,0.732,708.07,707.41,1.05687943]
[1735766710394,0.88956351,707.96,707.41,1.05687943]
[1735766710591,0.88956351,707.95,707.41,1.05687943]
[1735766710790,0.88956351,707.94,707.41,1.05687943]
[1735766711091,0.88956351,707.93,707.41,1.05687943]
[1735766711292,0.88956351,707.92,707.41,1.05687943]
[1735766711493,0.88956351,707.91,707.41,1.05687943]
[1735766711793,0.88956351,707.9,707.37,1.05687943]
[1735766711993,0.88956351,707.89,707.37,1.05687943]
[1735766712296,0.732,708.07,707.37,1.05687943]
[1735766712487,0.88991065,708.06,707.37,1.05687943]
[1735766712691,0.732,708.07,707.37,1.05687943]
[1735766712893,0.88996817,708.06,707.37,1.05687943]
[1735766713193,0.88996817,708.05,707.37,1.05687943]
[1735766713388,0.88996817,708.04,707.37,1.05687943]
[1735766713596,0.88996817,708.03,707.37,1.05687943]
[1735766713792,0.88996817,708.02,707.37,1.05687943]
[1735766713992,0.88996817,708.01,707.37,1.05687943]
[1735766714194,0.732,708.07,707.37,1.05687943]
[1735766714195,0.88996817,708.0,707.37,1.05687943]
[1735766714493,0.88996817,708.0,707.08,1.05687943]
[1735766714494,0.88996817,707.99,707.36,1.05687943]
[1735766714694,0.88996817,707.98,707.36,1.05687943]
[1735766714894,0.88996817,707.97,707.36,1.05687943]
[1735766715092,0.88996817,707.96,707.36,1.05687943]
[1735766715289,0.88996817,707.95,707.36,1.05687943]
[1735766715492,0.88996817,707.94,707.36,1.05687943]
[1735766715694,0.88996817,707.93,707.5,1.05687943]
[1735766715895,0.88996817,707.92,707.5,1.05687943]
[1735766716091,0.88996817,707.91,707.5,1.05687943]
[1735766716289,0.88996817,707.9,707.5,1.05687943]
[1735766716492,0.88996817,707.89,707.5,1.05687943]
[1735766716692,0.88996817,707.88,707.5,1.05687943]
[1735766716893,0.88996817,707.88,706.98,2.1577955]
[1735766716894,0.88996817,707.87,707.28,1.05687943]
[1735766717089,0.88996817,707.86,707.28,1.05687943]
[1735766717294,0.88996817,707.85,707.28,1.05687943]
[1735766717490,0.88996817,707.84,707.28,1.05687943]
[1735766717695,0.88996817,707.83,707.28,1.05687943]
[1735766717895,0.88996817,707.82,707.28,1.05687943]
[1735766718094,0.88996817,707.81,707.28,1.05687943]
[1735766718397,0.88996817,707.8,707.26,1.05687943]
[1735766718597,1.47572788,707.97,707.26,1.05687943]
[1735766718799,0.89006293,707.96,707.26,1.05687943]
[1735766718995,0.89006293,707.95,707.26,1.05687943]
[1735766719192,0.89002394,707.94,707.26,1.05687943]
[1735766719395,0.89002394,707.94,706.69,1.26825531]
[1735766719396,0.89002394,707.93,707.35,1.05687943]
[1735766719593,0.89002394,707.92,707.35,1.05687943]
[1735766719795,0.89002394,707.91,707.35,1.05687943]
[1735766719996,0.89002394,707.9,707.35,1.05687943]
[1735766720300,0.89002394,707.89,707.35,1.05687943]
[1735766720599,0.89002394,707.88,707.35,1.05687943]
[1735766720799,0.89002394,707.87,707.35,1.05687943]
[1735766720999,0.89002394,707.86,707.35,1.05687943]
[1735766721201,0.89002394,707.85,707.35,1.05687943]
[1735766721396,0.89002394,707.84,707.35,1.05687943]
[1735766721597,0.89002394,707.83,707.35,1.05687943]
[1735766721795,1.47572788,707.97,707.3,1.05687943]
[1735766721999,0.88991908,707.96,707.3,1.05687943]
[1735766722299,0.88991908,707.95,707.3,1.05687943]
[1735766722495,1.47572788,707.97,707.3,1.05687943]
[1735766722496,0.88991908,707.94,707.3,1.05687943]
[1735766722693,0.88991908,707.93,707.27,1.05687943]
[1735766722902,0.88991908,707.92,707.27,1.05687943]
[1735766723199,0.88991908,707.91,707.27,1.05687943]
[1735766723499,0.88991908,707.9,707.27,1.05687943]
[1735766723799,0.88991908,707.89,707.27,1.05687943]
[1735766724001,0.88991908,707.88,707.24,1.05687943]
[1735766724200,1.47572788,707.97,707.24,1.05687943]
[1735766724201,0.88991908,707.87,707.24,1.05687943]
[1735766724497,0.88991908,707.86,707.24,1.05687943]
[1735766724696,0.88991908,707.85,707.24,1.05687943]
[1735766724894,0.88991908,707.84,707.24,1.05687943]
[1735766725098,0.88991908,707.83,707.24,1.05687943]
[1735766725300,0.88991908,707.82,707.24,1.05687943]
[1735766725496,0.88991908,707.81,707.24,1.05687943]
[1735766725699,0.88991908,707.8,707.24,1.05687943]
[1735766725894,1.47600954,707.83,707.24,1.05687943]
[1735766725895,0.88991908,707.79,707.24,1.05687943]
[1735766726103,0.88991908,707.78,707.24,1.05687943]
[1735766726300,0.88991908,707.77,707.23,1.05687943]
[1735766726500,0.88991908,707.76,707.23,1.05687943]
[1735766726803,0.88991908,707.75,707.23,1.05687943]
[1735766727001,0.88991908,707.74,707.23,1.05687943]
[1735766727195,0.88991908,707.73,707.23,1.05687943]
[1735766727399,0.88991908,707.73,706.65,2.1577955]
[1735766727400,0.88991908,707.72,707.25,1.05687943]
[1735766727595,1.47600954,707.83,707.25,1.05687943]
[1735766727800,0.89028661,707.82,707.25,1.05687943]
[1735766728002,0.89028661,707.81,707.25,1.05687943]
[1735766728197,0.89028661,707.8,707.25,1.05687943]
[1735766728400,0.89028661,707.79,707.24,1.05687943]
[1735766728605,1.47600954,707.83,707.24,1.05687943]
[1735766728606,0.89028661,707.78,707.24,1.05687943]
[1735766728802,0.89028661,707.77,707.24,1.05687943]
[1735766729004,0.89028661,707.76,707.24,1.05687943]
[1735766729306,0.89028661,707.75,707.24,1.05687943]
[1735766729607,0.89028661,707.74,707.23,1.05687943]
[1735766729905,0.89028661,707.73,707.23,1.05687943]
[1735766730106,0.89041595,707.72,707.23,1.05687943]
[1735766730403,0.89041595,707.71,707.23,1.05687943]
[1735766730599,0.89041595,707.7,707.22,1.05687943]
[1735766730805,0.89048003,707.69,707.22,1.05687943]
[1735766730998,0.89048003,707.68,707.22,1.05687943]
[1735766731197,0.89048003,707.67,707.22,1.05687943]
[1735766731399,1.47600954,707.83,707.22,1.05687943]
[1735766731604,0.89059836,707.82,707.22,1.05687943]
[1735766731802,0.89059836,707.81,707.22,1.05687943]
[1735766732001,0.89059836,707.8,707.22,1.05687943]
[1735766732198,0.89059836,707.79,707.22,1.05687943]
[1735766732398,0.89059836,707.78,707.22,1.05687943]
[1735766732601,1.47600954,707.83,707.2,1.05687943]
[1735766732602,0.89059836,707.77,707.2,1.05687943]
[1735766732797,0.89059836,707.76,707.2,1.05687943]
[1735766732999,0.89059836,707.75,707.2,1.05687943]
[1735766733202,0.89059836,707.74,707.2,1.05687943]
[1735766733401,1.47600954,707.83,707.2,1.05687943]
[1735766733402,0.89059836,707.73,707.2,1.05687943]
[1735766733609,0.89059836,707.72,707.2,1.05687943]
[1735766733804,0.8906078,707.71,707.21,1.05687943]
[1735766734006,0.8906078,707.7,707.21,1.05687943]
[1735766734201,0.8906078,707.69,707.21,1.05687943]
[1735766734398,1.6236078,707.68,707.21,1.05687943]
[1735766734602,0.8906078,707.67,707.21,1.05687943]
[1735766734799,0.8906078,707.66,707.21,1.05687943]
[1735766735001,0.733,707.68,707.21,1.05687943]
[1735766735406,0.89058885,707.67,707.21,1.05687943]
[1735766735599,0.733,707.68,707.21,1.05687943]
[1735766735802,0.89057867,707.67,707.21,1.05687943]
[1735766736004,0.89057867,707.66,707.21,1.05687943]
[1735766736204,0.733,707.68,707.22,1.05687943]
[1735766736404,0.89066064,707.67,707.22,1.05687943]
[1735766736603,0.89066064,707.66,707.22,1.05687943]
[1735766736806,0.733,707.68,707.22,1.05687943]
[1735766737006,0.89059757,707.67,707.22,1.05687943]
[1735766737205,0.733,707.68,707.22,1.05687943]
[1735766737408,0.89059318,707.67,707.2,1.05687943]
[1735766737608,0.89059318,707.66,707.2,1.05687943]
[1735766737809,0.89059318,707.65,707.2,1.05687943]
[1735766738010,0.733,707.68,707.2,1.05687943]
[1735766738210,0.89056053,707.67,707.2,1.05687943]
[1735766738509,0.89056053,707.66,707.18,1.05687943]
[1735766738704,0.89056053,707.65,707.18,1.05687943]
[1735766739009,0.89056053,707.64,707.18,1.05687943]
[1735766739209,0.733,707.68,707.19,1.05687943]
[1735766739210,0.89056053,707.63,707.19,1.05687943]
[1735766739411,0.733,707.68,707.19,1.05687943]
[1735766739610,0.89056795,707.67,707.19,1.05687943]
[1735766739909,0.89056795,707.66,707.19,1.05687943]
[1735766740104,0.89056795,707.65,707.19,1.05687943]
[1735766740309,0.89056795,707.64,707.19,1.05687943]
[1735766740510,0.89056795,707.63,707.19,1.05687943]
[1735766740810,0.733,707.68,707.19,1.05687943]
[1735766740811,0.89056795,707.62,707.19,1.05687943]
[1735766741008,0.733,707.68,707.19,1.05687943]
[1735766741209,0.89026885,707.67,707.19,1.05687943]
[1735766741410,0.89026885,707.67,706.62,2.1577955]
[1735766741411,0.89026885,707.66,707.21,1.05687943]
[1735766741608,0.89026885,707.65,707.21,1.05687943]
[1735766741808,0.89026885,707.64,707.21,1.05687943]
[1735766742011,0.89026885,707.63,707.21,1.05687943]
[1735766742213,0.89026885,707.62,707.21,1.05687943]
[1735766742506,0.733,707.68,707.12,1.05687943]
[1735766742507,0.89026885,707.61,707.12,1.05687943]
[1735766742713,0.88982879,707.6,707.12,1.05687943]
[1735766742911,0.88982879,707.59,707.12,1.05687943]
[1735766743113,0.88982879,707.58,707.12,1.05687943]
[1735766743310,0.88982879,707.57,707.12,1.05687943]
[1735766743507,0.88982879,707.56,707.1,1.05687943]
[1735766743712,0.733,707.68,707.1,1.05687943]
[1735766743912,0.88970771,707.67,707.1,1.05687943]
[1735766744108,0.88970771,707.66,707.1,1.05687943]
[1735766744314,0.88970771,707.65,707.1,1.05687943]
[1735766744514,0.88970771,707.64,707.1,1.05687943]
[1735766744712,0.88970771,707.63,707.1,1.05687943]
[1735766744916,0.88970771,707.63,706.61,1.26825531]
[1735766744917,0.88970771,707.62,707.11,1.05687943]
[1735766745113,0.88970771,707.61,707.11,1.05687943]
[1735766745309,0.88970771,707.6,707.11,1.05687943]
[1735766745515,0.88970771,707.59,707.11,1.05687943]
[1735766745715,0.88970771,707.58,707.11,1.05687943]
[1735766745909,0.88970771,707.57,707.11,1.05687943]
[1735766746110,1.47641136,707.62,707.11,1.05687943]
[1735766746313,0.88918858,707.61,706.9,1.05687943]
[1735766746509,0.88918858,707.6,706.9,1.05687943]
[1735766746712,0.88918858,707.59,706.9,1.05687943]
[1735766746913,0.88918858,707.58,706.9,1.05687943]
[1735766747112,0.88918858,707.57,706.9,1.05687943]
[1735766747313,1.47641136,707.62,706.88,1.05687943]
[1735766747314,0.88918858,707.56,706.88,1.05687943]
[1735766747614,0.88918858,707.55,706.88,1.05687943]
[1735766747810,0.88918858,707.54,706.88,1.05687943]
[1735766748110,1.47641136,707.62,706.88,1.05687943]
[1735766748314,0.88877237,707.61,706.88,1.05687943]
[1735766748514,0.88877237,707.6,706.93,1.05687943]
[1735766748710,0.88877237,707.59,706.93,1.05687943]
[1735766748917,0.88877237,707.58,706.93,1.05687943]
[1735766749110,0.88877237,707.57,706.93,1.05687943]
[1735766749309,0.88877237,707.56,706.93,1.05687943]
[1735766749513,0.88877237,707.55,706.93,1.05687943]
[1735766749717,0.733,707.68,706.93,1.05687943]
[1735766749916,0.88857645,707.67,707.02,1.05687943]
[1735766750113,0.88857645,707.66,707.02,1.05687943]
[1735766750310,0.88857645,707.65,707.02,1.05687943]
[1735766750511,0.88857645,707.64,707.02,1.05687943]
[1735766750710,0.88857645,707.63,707.02,1.05687943]
[1735766750915,0.88857645,707.62,707.09,1.05687943]
[1735766751115,0.88857645,707.61,707.09,1.05687943]
[1735766751315,0.88857645,707.6,707.09,1.05687943]
[1735766751518,0.88857645,707.59,707.09,1.05687943]
[1735766751713,0.88839296,707.58,707.09,1.05687943]
[1735766751917,0.88839296,707.57,707.09,1.05687943]
[1735766752118,0.88839296,707.56,707.09,1.05687943]
[1735766752419,0.88839296,707.55,707.08,1.05687943]
[1735766752616,0.733,707.68,707.08,1.05687943]
[1735766752813,0.8883298,707.67,707.08,1.05687943]
[1735766753120,0.8883298,707.66,707.08,1.05687943]
[1735766753421,0.8883298,707.65,707.08,1.05687943]
[1735766753617,0.8883298,707.64,707.08,1.05687943]
[1735766753814,0.8883298,707.63,707.08,1.05687943]
[1735766754018,0.8883298,707.62,707.08,1.05687943]
[1735766754221,0.8883298,707.61,707.09,1.05687943]
[1735766754519,0.8883298,707.6,707.09,1.05687943]
[1735766754715,0.733,707.68,707.09,1.05687943]
[1735766754916,0.88818399,707.67,707.09,1.05687943]
[1735766755122,0.88818399,707.66,707.09,1.05687943]
[1735766755320,0.733,707.68,707.09,1.05687943]
[1735766755514,0.88826794,707.67,707.1,1.05687943]
[1735766755718,1.47645834,707.71,707.1,1.05687943]
[1735766755719,0.88826794,707.66,707.1,1.05687943]
[1735766755915,0.88826794,707.65,707.1,1.05687943]
[1735766756115,1.47645834,707.71,707.1,1.05687943]
[1735766756116,0.88826794,707.64,707.1,1.05687943]
[1735766756320,0.88826794,707.63,707.1,1.05687943]
[1735766756619,1.47645834,707.71,707.08,1.05687943]
[1735766756620,1.62126794,707.62,707.08,1.05687943]
[1735766756920,0.88826794,707.61,707.08,1.05687943]
[1735766757116,0.88817458,707.6,707.08,1.05687943]
[1735766757322,0.88817458,707.59,707.08,1.05687943]
[1735766757521,0.88817458,707.58,707.08,1.05687943]
[1735766757721,0.88817458,707.58,706.61,1.26825531]
[1735766757722,0.733,707.62,707.09,1.05687943]
[1735766757921,0.88814127,707.61,707.09,1.05687943]
[1735766758122,0.88814127,707.6,707.09,1.05687943]
[1735766758423,0.88814127,707.59,707.09,1.05687943]
[1735766758624,0.733,707.62,707.09,1.05687943]
[1735766758922,0.8880906,707.61,707.1,1.05687943]
[1735766759117,0.8880906,707.6,707.1,1.05687943]
[1735766759321,0.8880906,707.59,707.1,1.05687943]
[1735766759525,0.8880906,707.58,707.1,1.05687943]
[1735766759818,0.733,707.62,707.1,1.05687943]
[1735766760018,0.733,707.62,706.53,2.1577955]
[1735766760019,0.88803305,707.61,707.09,1.05687943]
[1735766760321,0.88803305,707.6,707.09,1.05687943]
[1735766760521,0.88803305,707.59,707.09,1.05687943]
[1735766760723,0.733,707.62,707.09,1.05687943]
[1735766760921,0.88804272,707.61,707.09,1.05687943]
[1735766761118,0.88804272,707.6,707.13,1.05687943]
[1735766761321,0.88804272,707.59,707.13,1.05687943]
[1735766761521,0.88804272,707.58,707.13,1.05687943]
[1735766761717,0.88804272,707.57,707.13,1.05687943]
[1735766761922,0.88804272,707.56,707.13,1.05687943]
[1735766762223,0.88804272,707.55,707.13,1.05687943]
[1735766762419,0.733,707.62,707.13,1.05687943]
[1735766762623,0.88786362,707.61,707.08,1.05687943]
[1735766762822,0.88786362,707.6,707.08,1.05687943]
[1735766763123,0.88783047,707.59,707.08,1.05687943]
[1735766763322,0.733,707.62,707.08,1.05687943]
[1735766763323,0.88783047,707.58,707.08,1.05687943]
[1735766763523,0.733,707.62,707.08,1.05687943]
[1735766763825,0.733,707.62,706.97,1.05687943]
[1735766763826,0.8876625,707.61,706.97,1.05687943]
[1735766764124,0.8876625,707.6,706.97,1.05687943]
[1735766764322,0.8876625,707.59,706.97,1.05687943]
[1735766764521,0.8876625,707.58,706.97,1.05687943]
[1735766764723,0.8876625,707.57,706.97,1.05687943]
[1735766764918,0.8876625,707.56,706.97,1.05687943]
[1735766765123,0.8876625,707.55,706.95,1.05687943]
[1735766765423,0.88758253,707.54,706.95,1.05687943]
[1735766765621,0.88758253,707.53,706.95,1.05687943]
[1735766765818,0.88758253,707.52,706.95,1.05687943]
[1735766766127,0.88762016,707.51,706.95,1.05687943]
[1735766766423,0.88762016,707.5,706.97,1.05687943]
[1735766766616,0.88762016,707.49,706.97,1.05687943]
[1735766766821,0.88762016,707.48,706.97,1.05687943]
[1735766767121,0.733,707.62,706.94,1.05687943]
[1735766767322,0.88762238,707.61,706.94,1.05687943]
[1735766767624,0.88762238,707.6,706.94,1.05687943]
[1735766767822,0.88762238,707.59,706.94,1.05687943]
[1735766768019,0.88762238,707.58,706.9,1.05687943]
[1735766768226,0.733,707.62,706.9,1.05687943]
[1735766768227,0.88762238,707.57,706.9,1.05687943]
[1735766768523,0.88762238,707.56,706.9,1.05687943]
[1735766768725,0.88762238,707.55,706.9,1.05687943]
[1735766768926,0.733,707.62,706.9,1.05687943]
[1735766769222,0.88800514,707.61,706.9,1.05687943]
[1735766769525,0.88800514,707.6,706.93,1.05687943]
[1735766769725,0.88800514,707.59,706.93,1.05687943]
[1735766769924,0.733,707.62,706.93,1.05687943]
[1735766770224,0.8882112,707.61,706.93,1.05687943]
[1735766770524,0.8882112,707.6,706.93,1.05687943]
[1735766770726,0.8882112,707.59,706.99,1.05687943]
[1735766770919,0.8884591,707.58,706.99,1.05687943]
[1735766771119,1.47643224,707.76,706.99,1.05687943]
[1735766771321,0.88844296,707.75,706.99,1.05687943]
[1735766771519,0.88844296,707.74,706.99,1.05687943]
[1735766771829,0.88844296,707.73,707.01,1.05687943]
[1735766772124,0.8886836,707.72,707.01,1.05687943]
[1735766772324,0.8886836,707.71,707.01,1.05687943]
[1735766772524,0.8886836,707.7,707.01,1.05687943]
[1735766772725,0.8886836,707.69,707.01,1.05687943]
[1735766772920,0.733,707.73,707.03,1.05687943]
[1735766772921,0.8886836,707.68,707.03,1.05687943]
[1735766773126,0.8886836,707.67,707.03,1.05687943]
[1735766773421,0.8886836,707.66,707.03,1.05687943]
[1735766773625,0.8886836,707.65,707.03,1.05687943]
[1735766773821,0.8886836,707.64,707.12,1.05687943]
[1735766774026,0.8886836,707.63,707.12,1.05687943]
[1735766774326,0.8886836,707.62,707.12,1.05687943]
[1735766774527,0.88920196,707.61,707.12,1.05687943]
[1735766774722,0.733,707.73,707.12,1.05687943]
[1735766774920,0.733,707.73,707.15,1.05687943]
[1735766775125,0.88929889,707.72,707.15,1.05687943]
[1735766775325,0.88929889,707.71,707.15,1.05687943]
[1735766775627,0.88929889,707.7,707.15,1.05687943]
[1735766775927,0.88929889,707.69,707.15,1.05687943]
[1735766776128,0.733,707.73,707.15,1.05687943]
[1735766776331,0.733,707.73,706.44,2.1577955]
[1735766776332,0.88951862,707.72,707.16,1.05687943]
[1735766776529,0.733,707.73,707.16,1.05687943]
[1735766776530,0.88951862,707.71,707.16,1.05687943]
[1735766776726,0.88951862,707.7,707.16,1.05687943]
[1735766776927,0.88951862,707.69,707.16,1.05687943]
[1735766777122,0.733,707.73,707.16,1.05687943]
[1735766777123,0.88951862,707.68,707.16,1.05687943]
[1735766777324,0.88951862,707.67,707.16,1.05687943]
[1735766777526,0.733,707.73,707.16,1.05687943]
[1735766777729,0.88953213,707.72,707.27,1.05687943]
[1735766777930,0.88957334,707.71,707.27,1.05687943]
[1735766778130,0.88957334,707.7,707.27,1.05687943]
[1735766778324,0.88957334,707.69,707.27,1.05687943]
[1735766778524,0.88957334,707.68,707.27,1.05687943]
[1735766778725,0.88957334,707.67,707.27,1.05687943]
[1735766778924,0.88957334,707.67,706.66,2.1577955]
[1735766778925,0.88957334,707.66,707.25,1.05687943]
[1735766779129,0.733,707.73,707.25,1.05687943]
[1735766779432,0.88959714,707.72,707.25,1.05687943]
[1735766779730,0.88959714,707.71,707.25,1.05687943]
[1735766779930,0.88959714,707.71,706.65,2.1577955]
[1735766779931,0.88959714,707.7,707.23,1.05687943]
[1735766780230,0.88959714,707.69,707.23,1.05687943]
[1735766780431,0.88959714,707.68,707.23,1.05687943]
[1735766780726,0.88959714,707.67,707.23,1.05687943]
[1735766780931,0.88959714,707.67,707.0,1.05687943]
[1735766780932,0.733,707.73,707.16,1.05687943]
[1735766781132,0.88930487,707.72,707.16,1.05687943]
[1735766781431,0.88930487,707.71,707.16,1.05687943]
[1735766781632,0.8890523,707.7,707.16,1.05687943]
[1735766781828,0.8890523,707.69,707.16,1.05687943]
[1735766782028,0.733,707.73,707.12,1.05687943]
[1735766782239,0.88896548,707.72,707.12,1.05687943]
[1735766782433,0.88896548,707.71,707.12,1.05687943]
[1735766782732,0.88896548,707.7,707.12,1.05687943]
[1735766782926,0.88896548,707.69,707.12,1.05687943]
[1735766783130,0.88896548,707.68,707.12,1.05687943]
[1735766783331,1.47606693,707.9,707.09,1.05687943]
[1735766783332,0.88896548,707.67,707.09,1.05687943]
[1735766783530,0.88896548,707.66,707.09,1.05687943]
[1735766783730,0.88896548,707.65,707.09,1.05687943]
[1735766783930,0.88896548,707.64,707.09,1.05687943]
[1735766784133,1.47606693,707.9,707.09,1.05687943]